[Event "WSTCC-65 2020"]
[Site "Prague"]
[Date "2020.03.10"]
[Round "5.20"]
[White "Lederman, Leon"]
[Black "Danner, Lambert"]
[Result "1-0"]
[ECO "B07"]
[WhiteElo "2234"]
[BlackElo "2022"]
[Annotator "ChessBase"]
[PlyCount "81"]
[EventDate "2020.03.06"]
[EventType "team-tourn"]
[EventCountry "CZE"]
[SourceTitle "playchess.com"]
[Source "ChessBase"]
[SourceQuality "1"]
[TimeControl "40/5400+30:1800+30"]

1. e4 {[%emt 0:00:00]} d6 {[%emt 0:00:00]} 2. d4 {[%emt 0:00:00]} Nf6 {[%emt 0:00:00]} 3. Nc3 {[%emt 0:00:00]} Nbd7 {[%emt 0:00:17]} 4. f4 {[%emt 0:01:09]} e5 {[%emt 0:00:22]} 5. Nf3 {[%emt 0:00:07]} exd4 {[%emt 0:00:27]} 6. Qxd4 {[%emt 0:00:28]} c6 {[%emt 0:00:34]} 7. Be3 {[%emt 0:10:39]} d5 {[%emt 0:01:50]} 8. e5 {[%emt 0:01:22]} Bc5 {[%emt 0:00:58]} 9. Qd2 {[%emt 0:02:22]} Bxe3 {[%emt 0:01:00]} 10. Qxe3 {[%emt 0:00:05]} Ng4 {[%emt 0:00:10]} 11. Qd4 {[%emt 0:06:37]} Qb6 {[%emt 0:00:24]} 12. h3 {[%emt 0:00:33]} Qxd4 {[%emt 0:00:52]} 13. Nxd4 {[%emt 0:00:12]} Ne3 {[%emt 0:00:08]} 14. Kd2 {[%emt 0:00:42]} Nxf1+ {[%emt 0:00:25]} 15. Rhxf1 {[%emt 0:00:14]} O-O {[%emt 0:00:25]} 16. Rae1 {[%emt 0:04:53]} Nc5 {[%emt 0:02:42]} 17. f5 {[%emt 0:01:32]} Re8 {[%emt 0:03:02]} 18. g4 {[%emt 0:01:05]} a5 {[%emt 0:01:17]} 19. b3 {[%emt 0:01:38]} Bd7 {[%emt 0:01:26]} 20. a3 {[%emt 0:01:26]} Rad8 {[%emt 0:02:09]} 21. Rf4 {[%emt 0:29:00]} Bc8 {[%emt 0:04:36]} 22. b4 {[%emt 0:04:08]} axb4 {[%emt 0:00:51]} 23. axb4 {[%emt 0:00:02]} Nd7 {[%emt 0:01:48]} 24. e6 {[%emt 0:07:26]} Nb6 {[%emt 0:00:24]} 25. exf7+ {[%emt 0:00:19]} Kxf7 {[%emt 0:00:12]} 26. Ne6 {[%emt 0:03:26]} Bxe6 {[%emt 0:01:35]} 27. fxe6+ {[%emt 0:00:32]} Kg6 {[%emt 0:00:42]} 28. Rf7 {[%emt 0:04:57]} Rd6 {[%emt 0:02:17]} 29. Rxb7 {[%emt 0:01:39]} Nc4+ {[%emt 0:00:43]} 30. Kd3 {[%emt 0:01:37]} Rdxe6 {[%emt 0:01:24]} 31. Rxe6+ {[%emt 0:00:06]} Rxe6 {[%emt 0:00:05]} 32. Rc7 {[%emt 0:01:47]} Re3+ {[%emt 0:04:09]} 33. Kd4 {[%emt 0:01:38]} Rxh3 {[%emt 0:00:08]} 34. Rxc6+ {[%emt 0:00:06]} Kg5 {[%emt 0:00:08]} 35. Nxd5 {[%emt 0:00:27]} Na3 {[%emt 0:03:44]} 36. Rc5 {[%emt 0:01:36]} Kxg4 {[%emt 0:00:33]} 37. b5 {[%emt 0:00:13]} Rh1 {[%emt 0:03:52]} 38. Nb4 {[%emt 0:07:34]} Rd1+ {[%emt 0:01:52]} 39. Kc3 {[%emt 0:02:35]} Rb1 {[%emt 0:07:12]} 40. b6 {[%emt 0:00:00]} Nxc2 {[%emt 0:00:00]} 41. Rc4+ {[%emt 0:00:46]} 1-0

[Event "WSTCC-65 2020"]
[Site "Prague"]
[Date "2020.03.10"]
[Round "5.27"]
[White "Krauseneck, Peter"]
[Black "Moen, Ole Christian"]
[Result "1-0"]
[ECO "A45"]
[WhiteElo "2126"]
[BlackElo "2192"]
[Annotator "ChessBase"]
[PlyCount "87"]
[EventDate "2020.03.06"]
[EventType "team-tourn"]
[EventCountry "CZE"]
[SourceTitle "playchess.com"]
[Source "ChessBase"]
[SourceQuality "1"]
[TimeControl "40/5400+30:1800+30"]

1. d4 {[%emt 0:00:00]} Nf6 {[%emt 0:01:24]} 2. e3 {[%emt 0:00:20]} g6 {[%emt 0:00:38]} 3. f4 {[%emt 0:00:10]} Bg7 {[%emt 0:00:15]} 4. Nf3 {[%emt 0:00:08]} d5 {[%emt 0:00:16]} 5. Bd3 {[%emt 0:01:01]} O-O {[%emt 0:00:34]} 6. O-O {[%emt 0:00:02]} b6 {[%emt 0:00:35]} 7. Qe2 {[%emt 0:00:22]} a5 {[%emt 0:00:13]} 8. c4 {[%emt 0:03:07]} e6 {[%emt 0:04:47]} 9. b3 {[%emt 0:02:51]} a4 {[%emt 0:01:43]} 10. bxa4 {[%emt 0:13:30]} Rxa4 {[%emt 0:00:16]} 11. Nc3 {[%emt 0:00:26]} Rxc4 {[%emt 0:02:31]} 12. Bxc4 {[%emt 0:00:42]} dxc4 {[%emt 0:00:06]} 13. Rd1 {[%emt 0:01:41]} Ba6 {[%emt 0:02:46]} 14. a4 {[%emt 0:09:18]} Nc6 {[%emt 0:01:46]} 15. Ne5 {[%emt 0:07:57]} Na5 {[%emt 0:05:37]} 16. Rb1 {[%emt 0:06:19]} Qa8 {[%emt 0:01:02]} 17. Ba3 {[%emt 0:05:29]} Rc8 {[%emt 0:06:05]} 18. e4 {[%emt 0:17:59]} Bb7 {[%emt 0:02:38]} 19. Re1 {[%emt 0:00:02]} Ne8 {[%emt 0:05:10]} 20. Bb4 {[%emt 0:03:33]} Nd6 {[%emt 0:00:58]} 21. Nf3 {[%emt 0:04:25]} c5 {[%emt 0:02:34]} 22. dxc5 {[%emt 0:02:45]} bxc5 {[%emt 0:00:30]} 23. Bxa5 {[%emt 0:01:28]} Qxa5 {[%emt 0:00:09]} 24. e5 {[%emt 0:00:26]} Qxc3 {[%emt 0:03:30]} 25. exd6 {[%emt 0:00:03]} Bd5 {[%emt 0:02:03]} 26. Ne5 {[%emt 0:00:42]} Rd8 {[%emt 0:00:36]} 27. Rb6 {[%emt 0:02:53]} Qd4+ {[%emt 0:02:32]} 28. Qf2 {[%emt 0:00:27]} c3 {[%emt 0:00:24]} 29. a5 {[%emt 0:02:37]} Bf8 {[%emt 0:03:21]} 30. d7 {[%emt 0:09:02]} f6 {[%emt 0:01:05]} 31. Nc6 {[%emt 0:01:38]} Qxf2+ {[%emt 0:00:10]} 32. Kxf2 {[%emt 0:00:03]} Rxd7 {[%emt 0:00:08]} 33. Rc1 {[%emt 0:00:44]} c4 {[%emt 0:00:17]} 34. Kf1 {[%emt 0:01:50]} Bc5 {[%emt 0:01:06]} 35. Rb8+ {[%emt 0:00:04]} Kf7 {[%emt 0:01:11]} 36. Rc8 {[%emt 0:00:42]} Bd6 {[%emt 0:03:01]} 37. Rxc3 {[%emt 0:00:52]} Bc7 {[%emt 0:02:28]} 38. Nb8 {[%emt 0:01:16]} Bxa5 {[%emt 0:02:58]} 39. Ra3 {[%emt 0:00:08]} Bb4 {[%emt 0:01:27]} 40. Nxd7 {[%emt 0:00:00]} Bxa3 {[%emt 0:00:00]} 41. Nb6 {[%emt 0:02:29]} Bd6 {[%emt 0:02:42]} 42. g3 {[%emt 0:03:48]} Bb7 {[%emt 0:03:47]} 43. Rd8 {[%emt 0:01:06]} Ke7 {[%emt 0:00:17]} 44. Rd7+ {[%emt 0:00:14]} 1-0

[Event "WSTCC-65 2020"]
[Site "Prague"]
[Date "2020.03.10"]
[Round "5.28"]
[White "Kristiansen, Erling"]
[Black "Seibold, Hubert"]
[Result "0-1"]
[ECO "B38"]
[WhiteElo "2123"]
[BlackElo "2123"]
[Annotator "ChessBase"]
[PlyCount "84"]
[EventDate "2020.03.06"]
[EventType "team-tourn"]
[EventCountry "CZE"]
[SourceTitle "playchess.com"]
[Source "ChessBase"]
[SourceQuality "1"]
[TimeControl "40/5400+30:1800+30"]

1. e4 {[%emt 0:00:00]} c5 {[%emt 0:00:00]} 2. Nf3 {[%emt 0:00:00]} Nc6 {[%emt 0:00:00]} 3. d4 {[%emt 0:00:08]} cxd4 {[%emt 0:00:01]} 4. Nxd4 {[%emt 0:00:09]} g6 {[%emt 0:00:06]} 5. c4 {[%emt 0:01:23]} Bg7 {[%emt 0:00:11]} 6. Be3 {[%emt 0:00:10]} Nf6 {[%emt 0:00:18]} 7. f3 {[%emt 0:00:05]} O-O {[%emt 0:01:10]} 8. Nc3 {[%emt 0:00:21]} d6 {[%emt 0:00:26]} 9. Be2 {[%emt 0:00:37]} Bd7 {[%emt 0:01:41]} 10. Rc1 {[%emt 0:02:38]} Nxd4 {[%emt 0:02:49]} 11. Bxd4 {[%emt 0:00:13]} a5 12. a4 Bc6 {[%emt 0:05:01]} 13. O-O {[%emt 0:02:02]} Nd7 {[%emt 0:03:33]} 14. Bxg7 {[%emt 0:02:16]} Kxg7 {[%emt 0:00:09]} 15. Qd4+ {[%emt 0:00:22]} Kg8 {[%emt 0:01:02]} 16. Nb5 {[%emt 0:01:14]} Qb6 {[%emt 0:05:52]} 17. b3 {[%emt 0:01:04]} Bxb5 {[%emt 0:09:56]} 18. Qxb6 {[%emt 0:00:08]} Nxb6 {[%emt 0:00:07]} 19. cxb5 {[%emt 0:00:41]} Rfc8 {[%emt 0:00:45]} 20. Kf2 {[%emt 0:00:30]} Kf8 {[%emt 0:07:16]} 21. Ke3 {[%emt 0:00:50]} Nd7 {[%emt 0:03:15]} 22. f4 {[%emt 0:02:36]} e6 {[%emt 0:16:43]} 23. Bf3 {[%emt 0:04:43]} Rc5 {[%emt 0:04:51]} 24. Rxc5 {[%emt 0:04:06]} Nxc5 {[%emt 0:01:15]} 25. Rb1 {[%emt 0:00:29]} Ke7 {[%emt 0:01:58]} 26. Kd4 {[%emt 0:00:59]} b6 {[%emt 0:01:18]} 27. e5 {[%emt 0:02:58]} dxe5+ {[%emt 0:11:04]} 28. fxe5 {[%emt 0:00:03]} Rd8+ {[%emt 0:00:08]} 29. Kc4 {[%emt 0:00:29]} Nd3 {[%emt 0:00:18]} 30. Kc3 {[%emt 0:00:22]} Nxe5 {[%emt 0:00:21]} 31. Be2 {[%emt 0:01:08]} Rc8+ {[%emt 0:01:33]} 32. Kd4 {[%emt 0:00:37]} Nd7 {[%emt 0:00:32]} 33. b4 {[%emt 0:00:07]} e5+ {[%emt 0:01:27]} 34. Ke3 {[%emt 0:01:08]} axb4 {[%emt 0:00:47]} 35. Rxb4 {[%emt 0:00:09]} Rc3+ {[%emt 0:02:00]} 36. Kd2 {[%emt 0:03:02]} Ra3 {[%emt 0:01:07]} 37. Bd1 {[%emt 0:00:37]} f5 {[%emt 0:00:31]} 38. Kc1 {[%emt 0:06:26]} Ra1+ {[%emt 0:02:52]} 39. Kd2 {[%emt 0:00:27]} Nc5 {[%emt 0:01:42]} 40. Bc2 {[%emt 0:00:55]} Kd6 {[%emt 0:01:23]} 41. Kc3 {[%emt 0:00:35]} e4 {[%emt 0:08:53]} 42. Kd4 {[%emt 0:01:31]} Ra3 {[%emt 0:01:49]} 0-1

[Event "WSTCC-65 2020"]
[Site "Prague"]
[Date "2020.03.10"]
[Round "5.30"]
[White "Wahlbom, Magnus"]
[Black "Scrimgour, Alan"]
[Result "1/2-1/2"]
[ECO "B47"]
[WhiteElo "2176"]
[BlackElo "2059"]
[Annotator "ChessBase"]
[PlyCount "46"]
[EventDate "2020.03.06"]
[EventType "team-tourn"]
[EventCountry "CZE"]
[SourceTitle "playchess.com"]
[Source "ChessBase"]
[SourceQuality "1"]
[TimeControl "40/5400+30:1800+30"]

1. e4 {[%emt 0:00:00]} c5 {[%emt 0:00:00]} 2. Nf3 {[%emt 0:00:00]} e6 {[%emt 0:00:00]} 3. d4 {[%emt 0:00:00]} cxd4 {[%emt 0:00:00]} 4. Nxd4 {[%emt 0:00:00]} Nc6 {[%emt 0:00:00]} 5. Nc3 {[%emt 0:00:27]} Qc7 {[%emt 0:00:08]} 6. Be2 {[%emt 0:01:28]} a6 {[%emt 0:00:07]} 7. O-O {[%emt 0:01:17]} Nf6 {[%emt 0:00:53]} 8. Be3 {[%emt 0:04:09]} Be7 {[%emt 0:01:38]} 9. f4 {[%emt 0:02:47]} d6 {[%emt 0:02:35]} 10. a4 {[%emt 0:03:45]} O-O {[%emt 0:04:12]} 11. Kh1 {[%emt 0:06:26]} Bd7 {[%emt 0:05:35]} 12. Nb3 {[%emt 0:04:15]} b6 {[%emt 0:17:36]} 13. Bf3 {[%emt 0:02:43]} Rac8 {[%emt 0:01:37]} 14. Qe2 {[%emt 0:02:00]} Nb4 {[%emt 0:03:00]} 15. Qf2 {[%emt 0:12:45]} Rb8 {[%emt 0:06:36]} 16. Nd4 {[%emt 0:09:03]} e5 {[%emt 0:06:58]} 17. Nb3 {[%emt 0:05:35]} Bc6 {[%emt 0:08:39]} 18. Rfd1 {[%emt 0:05:30]} Qb7 {[%emt 0:05:23]} 19. Rd2 {[%emt 0:11:22]} Nxe4 {[%emt 0:06:38]} 20. Nxe4 {[%emt 0:01:12]} Bxe4 {[%emt 0:02:23]} 21. Bxe4 {[%emt 0:01:45]} Qxe4 {[%emt 0:00:07]} 22. fxe5 {[%emt 0:00:26]} dxe5 {[%emt 0:03:44]} 23. Bxb6 {[%emt 0:04:10]} Qc6 1/2-1/2

[Event "WSTCC-65 2020"]
[Site "Prague"]
[Date "2020.03.10"]
[Round "5.31"]
[White "Levy, David N L"]
[Black "Hammar, Bengt"]
[Result "1/2-1/2"]
[ECO "B26"]
[WhiteElo "2310"]
[BlackElo "2142"]
[Annotator "ChessBase"]
[PlyCount "62"]
[EventDate "2020.03.06"]
[EventType "team-tourn"]
[EventCountry "CZE"]
[SourceTitle "playchess.com"]
[Source "ChessBase"]
[SourceQuality "1"]
[TimeControl "40/5400+30:1800+30"]

1. e4 c5 {[%emt 0:00:08]} 2. Nc3 {[%emt 0:00:00]} d6 {[%emt 0:00:41]} 3. g3 {[%emt 0:00:15]} Nc6 {[%emt 0:00:25]} 4. d3 {[%emt 0:00:13]} g6 {[%emt 0:00:17]} 5. Bg2 {[%emt 0:00:05]} Bg7 {[%emt 0:00:23]} 6. Be3 {[%emt 0:00:28]} e6 {[%emt 0:00:59]} 7. Qd2 {[%emt 0:00:23]} Bd7 {[%emt 0:02:01]} 8. Nge2 {[%emt 0:03:20]} Nd4 {[%emt 0:00:25]} 9. Nd1 {[%emt 0:02:39]} Ne7 {[%emt 0:05:51]} 10. Nxd4 {[%emt 0:05:00]} cxd4 {[%emt 0:00:18]} 11. Bh6 {[%emt 0:01:53]} O-O {[%emt 0:05:07]} 12. Bxg7 {[%emt 0:19:39]} Kxg7 {[%emt 0:00:09]} 13. O-O {[%emt 0:05:29]} e5 {[%emt 0:02:23]} 14. f4 {[%emt 0:04:33]} f6 {[%emt 0:00:37]} 15. Nf2 {[%emt 0:05:49]} Rc8 {[%emt 0:05:35]} 16. Rac1 {[%emt 0:04:23]} Qb6 {[%emt 0:01:07]} 17. c4 {[%emt 0:00:38]} a5 {[%emt 0:00:57]} 18. b3 {[%emt 0:05:29]} Qb4 {[%emt 0:02:54]} 19. Qe2 {[%emt 0:04:14]} b5 {[%emt 0:09:13]} 20. h4 {[%emt 0:01:51]} a4 {[%emt 0:02:08]} 21. Rb1 {[%emt 0:02:49]} axb3 {[%emt 0:01:55]} 22. Rxb3 {[%emt 0:01:10]} Qa4 {[%emt 0:00:22]} 23. cxb5 {[%emt 0:00:27]} Bxb5 {[%emt 0:00:16]} 24. Rfb1 {[%emt 0:00:28]} Ba6 {[%emt 0:00:18]} 25. f5 {[%emt 0:03:51]} Rc3 {[%emt 0:05:20]} 26. fxg6 {[%emt 0:00:25]} hxg6 {[%emt 0:00:08]} 27. Bh3 {[%emt 0:01:43]} Rxb3 {[%emt 0:03:48]} 28. Rxb3 {[%emt 0:00:30]} Qc6 {[%emt 0:00:30]} 29. Qb2 {[%emt 0:00:26]} Bc8 {[%emt 0:07:04]} 30. Rb6 Qc7 31. Bxc8 Rxc8 1/2-1/2

[Event "WSTCC-65 2020"]
[Site "Prague"]
[Date "2020.03.10"]
[Round "5.32"]
[White "Malmdin, Nils-Ake"]
[Black "McKerracher, Douglas"]
[Result "1-0"]
[ECO "A04"]
[WhiteElo "2168"]
[BlackElo "1852"]
[Annotator "ChessBase"]
[PlyCount "87"]
[EventDate "2020.03.06"]
[EventType "team-tourn"]
[EventCountry "CZE"]
[SourceTitle "playchess.com"]
[Source "ChessBase"]
[SourceQuality "1"]
[TimeControl "40/5400+30:1800+30"]

1. Nf3 {[%emt 0:00:06]} f5 {[%emt 0:00:02]} 2. d3 {[%emt 0:00:13]} d5 {[%emt 0:01:20]} 3. c4 {[%emt 0:00:21]} e6 {[%emt 0:00:53]} 4. cxd5 {[%emt 0:01:09]} exd5 {[%emt 0:00:19]} 5. g3 {[%emt 0:00:29]} Nf6 {[%emt 0:00:48]} 6. Bg2 {[%emt 0:00:14]} c6 {[%emt 0:02:22]} 7. O-O {[%emt 0:00:22]} Be7 {[%emt 0:03:00]} 8. Nc3 {[%emt 0:09:46]} O-O {[%emt 0:01:37]} 9. Qc2 {[%emt 0:07:26]} Na6 {[%emt 0:10:18]} 10. a3 {[%emt 0:03:42]} Nc7 {[%emt 0:03:48]} 11. Bf4 {[%emt 0:07:21]} Bd6 {[%emt 0:07:05]} 12. Bxd6 {[%emt 0:11:52]} Qxd6 {[%emt 0:00:09]} 13. Na4 {[%emt 0:00:43]} f4 {[%emt 0:04:09]} 14. Qc5 {[%emt 0:00:29]} Qxc5 {[%emt 0:06:10]} 15. Nxc5 {[%emt 0:00:10]} fxg3 {[%emt 0:00:43]} 16. hxg3 {[%emt 0:00:09]} Ne6 {[%emt 0:01:42]} 17. Rac1 {[%emt 0:00:52]} Nxc5 {[%emt 0:03:34]} 18. Rxc5 {[%emt 0:03:30]} Bg4 {[%emt 0:00:09]} 19. Nd4 {[%emt 0:02:32]} Rae8 {[%emt 0:00:35]} 20. e3 {[%emt 0:00:28]} Bd7 {[%emt 0:02:46]} 21. b4 {[%emt 0:01:15]} a6 {[%emt 0:01:45]} 22. a4 {[%emt 0:02:46]} g6 {[%emt 0:07:05]} 23. b5 {[%emt 0:05:49]} axb5 {[%emt 0:02:47]} 24. axb5 {[%emt 0:00:27]} b6 {[%emt 0:00:50]} 25. Rxc6 {[%emt 0:04:26]} Bxc6 {[%emt 0:03:35]} 26. bxc6 {[%emt 0:00:10]} Re7 {[%emt 0:03:27]} 27. Rb1 {[%emt 0:05:05]} Rb8 {[%emt 0:01:30]} 28. Rb5 {[%emt 0:00:47]} Kf7 {[%emt 0:04:18]} 29. Bxd5+ {[%emt 0:04:17]} Nxd5 {[%emt 0:01:10]} 30. Rxd5 {[%emt 0:00:10]} Rc7 {[%emt 0:01:22]} 31. Rb5 {[%emt 0:06:04]} Ke7 {[%emt 0:01:48]} 32. e4 {[%emt 0:04:19]} Rd8 {[%emt 0:02:22]} 33. Rb4 {[%emt 0:02:13]} Rb8 {[%emt 0:03:22]} 34. f4 {[%emt 0:01:54]} Rd8 {[%emt 0:05:32]} 35. Kf2 {[%emt 0:00:25]} Kf6 {[%emt 0:05:42]} 36. Ke3 {[%emt 0:01:59]} Rb8 {[%emt 0:00:30]} 37. Rb5 {[%emt 0:00:45]} Kf7 {[%emt 0:01:22]} 38. e5 {[%emt 0:01:28]} h5 {[%emt 0:01:28]} 39. Ke4 {[%emt 0:01:17]} Ke7 {[%emt 0:04:07]} 40. Rb4 {[%emt 0:00:00]} Kf7 {[%emt 0:00:00]} 41. Rc4 {[%emt 0:02:27]} Rbc8 {[%emt 0:03:54]} 42. Nb5 {[%emt 0:02:09]} Rxc6 {[%emt 0:03:53]} 43. Nd6+ {[%emt 0:00:13]} Rxd6 {[%emt 0:00:23]} 44. Rxc8 1-0

[Event "WSTCC-65 2020"]
[Site "Prague"]
[Date "2020.03.10"]
[Round "5.34"]
[White "Beltz, Robert"]
[Black "Trojan, Lubos"]
[Result "1/2-1/2"]
[ECO "E08"]
[WhiteElo "2158"]
[BlackElo "1928"]
[Annotator "ChessBase"]
[PlyCount "68"]
[EventDate "2020.03.06"]
[EventType "team-tourn"]
[EventCountry "CZE"]
[SourceTitle "playchess.com"]
[Source "ChessBase"]
[SourceQuality "1"]
[TimeControl "40/5400+30:1800+30"]

1. d4 {[%emt 0:00:00]} Nf6 {[%emt 0:00:00]} 2. c4 {[%emt 0:00:04]} e6 {[%emt 0:00:00]} 3. Nf3 {[%emt 0:01:01]} d5 {[%emt 0:00:17]} 4. g3 {[%emt 0:00:08]} Be7 {[%emt 0:01:25]} 5. Bg2 {[%emt 0:02:04]} O-O {[%emt 0:00:18]} 6. Qc2 {[%emt 0:00:13]} Nbd7 {[%emt 0:01:23]} 7. O-O {[%emt 0:00:28]} b6 {[%emt 0:04:17]} 8. Rd1 {[%emt 0:02:17]} Bb7 {[%emt 0:03:31]} 9. Ne5 {[%emt 0:00:46]} c5 {[%emt 0:16:10]} 10. Nc3 {[%emt 0:04:29]} Rc8 {[%emt 0:03:07]} 11. Nxd7 {[%emt 0:02:23]} Qxd7 {[%emt 0:02:40]} 12. dxc5 {[%emt 0:03:35]} Rxc5 {[%emt 0:10:06]} 13. cxd5 {[%emt 0:16:04]} exd5 {[%emt 0:00:20]} 14. Qd3 {[%emt 0:11:51]} Rd8 {[%emt 0:16:10]} 15. Bg5 {[%emt 0:04:44]} d4 {[%emt 0:08:52]} 16. Bxf6 {[%emt 0:10:03]} Bxf6 {[%emt 0:00:58]} 17. Bxb7 {[%emt 0:00:15]} Qxb7 {[%emt 0:00:11]} 18. Ne4 {[%emt 0:00:11]} Rc6 {[%emt 0:02:16]} 19. Rac1 {[%emt 0:01:11]} Be7 {[%emt 0:01:03]} 20. Rxc6 {[%emt 0:10:24]} Qxc6 {[%emt 0:00:16]} 21. e3 {[%emt 0:00:59]} f5 {[%emt 0:02:52]} 22. Qb3+ {[%emt 0:06:03]} Kf8 {[%emt 0:01:17]} 23. Nd2 {[%emt 0:00:38]} dxe3 {[%emt 0:00:24]} 24. fxe3 {[%emt 0:03:07]} a5 {[%emt 0:04:33]} 25. Nf1 {[%emt 0:02:10]} Rxd1 {[%emt 0:02:34]} 26. Qxd1 {[%emt 0:00:02]} Qe6 {[%emt 0:00:47]} 27. b3 {[%emt 0:00:45]} Kf7 {[%emt 0:00:19]} 28. Qh5+ {[%emt 0:00:56]} Qg6 {[%emt 0:00:15]} 29. Qf3 {[%emt 0:00:56]} Qf6 {[%emt 0:02:38]} 30. Qh5+ {[%emt 0:02:39]} Qg6 {[%emt 0:01:17]} 31. Qd1 {[%emt 0:00:50]} Qe6 {[%emt 0:00:35]} 32. Qh5+ {[%emt 0:02:23]} Qg6 {[%emt 0:00:02]} 33. Qe2 {[%emt 0:01:21]} Qe6 {[%emt 0:00:12]} 34. Qh5+ Kg8 1/2-1/2

[Event "WSTCC-65 2020"]
[Site "Prague"]
[Date "2020.03.10"]
[Round "5.36"]
[White "Walther, Hans-Wolfgang"]
[Black "Vesely, Emanuel"]
[Result "1-0"]
[ECO "D78"]
[WhiteElo "2111"]
[BlackElo "1779"]
[Annotator "ChessBase"]
[PlyCount "55"]
[EventDate "2020.03.06"]
[EventType "team-tourn"]
[EventCountry "CZE"]
[SourceTitle "playchess.com"]
[Source "ChessBase"]
[SourceQuality "1"]
[TimeControl "40/5400+30:1800+30"]

1. d4 {[%emt 0:00:00]} Nf6 {[%emt 0:00:00]} 2. Nf3 {[%emt 0:00:21]} g6 {[%emt 0:02:09]} 3. g3 {[%emt 0:02:10]} Bg7 {[%emt 0:01:28]} 4. Bg2 {[%emt 0:00:07]} O-O {[%emt 0:03:44]} 5. O-O {[%emt 0:00:40]} d5 {[%emt 0:01:31]} 6. c4 {[%emt 0:13:34]} c6 {[%emt 0:04:48]} 7. Nbd2 {[%emt 0:08:37]} Bf5 {[%emt 0:13:56]} 8. Qb3 {[%emt 0:05:02]} Qb6 {[%emt 0:05:22]} 9. c5 {[%emt 0:03:18]} Qxb3 {[%emt 0:02:01]} 10. Nxb3 {[%emt 0:00:31]} a5 {[%emt 0:07:39]} 11. a4 {[%emt 0:01:33]} Bc2 {[%emt 0:05:34]} 12. Ra3 {[%emt 0:00:13]} Nbd7 {[%emt 0:05:07]} 13. Bf4 {[%emt 0:01:54]} Nh5 {[%emt 0:12:57]} 14. Bd2 {[%emt 0:02:14]} e5 {[%emt 0:11:22]} 15. Nxa5 {[%emt 0:04:05]} exd4 {[%emt 0:01:50]} 16. b4 {[%emt 0:01:58]} f5 {[%emt 0:05:46]} 17. Rfa1 {[%emt 0:18:57]} Be4 {[%emt 0:02:51]} 18. Nxb7 {[%emt 0:01:32]} Rfb8 {[%emt 0:00:40]} 19. Na5 {[%emt 0:01:43]} d3 {[%emt 0:03:13]} 20. Re1 {[%emt 0:00:35]} dxe2 {[%emt 0:01:34]} 21. Nxc6 {[%emt 0:00:49]} Re8 {[%emt 0:00:49]} 22. Rxe2 {[%emt 0:00:33]} Bb2 {[%emt 0:04:16]} 23. Ra2 {[%emt 0:01:01]} Bf6 {[%emt 0:00:04]} 24. Nfd4 {[%emt 0:06:35]} Bxd4 {[%emt 0:01:31]} 25. Nxd4 {[%emt 0:00:08]} Ne5 {[%emt 0:00:24]} 26. Bc3 {[%emt 0:01:20]} Bxg2 {[%emt 0:00:36]} 27. Kxg2 {[%emt 0:00:12]} f4 {[%emt 0:01:07]} 28. Nf3 {[%emt 0:02:26]} 1-0

[Event "WSTCC-65 2020"]
[Site "Prague"]
[Date "2020.03.10"]
[Round "5.37"]
[White "Jimenez Molina, Juan Leon"]
[Black "Sejkora, Vlastimil"]
[Result "1/2-1/2"]
[ECO "A15"]
[WhiteElo "2174"]
[BlackElo "2149"]
[Annotator "ChessBase"]
[PlyCount "72"]
[EventDate "2020.03.06"]
[EventType "team-tourn"]
[EventCountry "CZE"]
[SourceTitle "playchess.com"]
[Source "ChessBase"]
[SourceQuality "1"]
[TimeControl "40/5400+30:1800+30"]

1. c4 {[%emt 0:00:00]} Nf6 {[%emt 0:01:04]} 2. g3 {[%emt 0:00:00]} g6 {[%emt 0:00:01]} 3. Bg2 {[%emt 0:00:00]} Bg7 {[%emt 0:00:00]} 4. Nc3 d6 5. b3 e5 6. Bb2 {[%emt 0:02:52]} c6 {[%emt 0:01:14]} 7. e4 {[%emt 0:06:54]} O-O {[%emt 0:02:37]} 8. Nge2 {[%emt 0:00:17]} Na6 {[%emt 0:01:05]} 9. O-O {[%emt 0:01:44]} Nc5 {[%emt 0:01:41]} 10. d4 {[%emt 0:02:27]} exd4 {[%emt 0:01:27]} 11. Nxd4 {[%emt 0:00:02]} Re8 {[%emt 0:00:10]} 12. Qc2 {[%emt 0:07:00]} a5 {[%emt 0:01:28]} 13. Rad1 {[%emt 0:01:59]} Bg4 {[%emt 0:02:58]} 14. f3 {[%emt 0:06:22]} Bc8 {[%emt 0:00:08]} 15. Nde2 {[%emt 0:03:29]} Qb6 {[%emt 0:04:34]} 16. Kh1 {[%emt 0:01:08]} a4 {[%emt 0:01:44]} 17. Nc1 {[%emt 0:03:29]} axb3 {[%emt 0:02:28]} 18. axb3 {[%emt 0:00:19]} Qc7 {[%emt 0:09:20]} 19. N3e2 {[%emt 0:10:52]} Be6 {[%emt 0:10:02]} 20. Bd4 {[%emt 0:03:47]} Nh5 {[%emt 0:11:09]} 21. g4 {[%emt 0:14:56]} Bxd4 {[%emt 0:00:34]} 22. Rxd4 {[%emt 0:00:15]} Ng7 {[%emt 0:00:25]} 23. Rfd1 f5 24. exf5 {[%emt 0:08:55]} gxf5 {[%emt 0:00:36]} 25. h3 {[%emt 0:01:50]} Rad8 {[%emt 0:01:38]} 26. Qd2 {[%emt 0:08:48]} Bf7 {[%emt 0:08:18]} 27. Nf4 {[%emt 0:04:26]} Nce6 {[%emt 0:05:04]} 28. Nxe6 {[%emt 0:00:27]} Rxe6 {[%emt 0:00:10]} 29. Ne2 {[%emt 0:01:37]} Qe7 {[%emt 0:20:56]} 30. Nc3 {[%emt 0:02:19]} Re3 {[%emt 0:00:48]} 31. gxf5 {[%emt 0:00:42]} Nxf5 {[%emt 0:00:23]} 32. Rg4+ {[%emt 0:00:07]} Bg6 {[%emt 0:00:38]} 33. b4 {[%emt 0:03:36]} Qe5 34. Ne4 d5 35. cxd5 cxd5 36. Rg5 d4 1/2-1/2

[Event "WSTCC-65 2020"]
[Site "Prague"]
[Date "2020.03.10"]
[Round "5.39"]
[White "Rovira Mas, Jorge"]
[Black "Mlynek, Petr"]
[Result "1/2-1/2"]
[ECO "A06"]
[WhiteElo "2196"]
[BlackElo "2053"]
[Annotator "ChessBase"]
[PlyCount "44"]
[EventDate "2020.03.06"]
[EventType "team-tourn"]
[EventCountry "CZE"]
[SourceTitle "playchess.com"]
[Source "ChessBase"]
[SourceQuality "1"]
[TimeControl "40/5400+30:1800+30"]

1. Nf3 {[%emt 0:00:00]} d5 {[%emt 0:00:00]} 2. b3 {[%emt 0:00:00]} Bf5 {[%emt 0:00:25]} 3. Bb2 {[%emt 0:00:13]} e6 {[%emt 0:00:25]} 4. d3 {[%emt 0:00:32]} h6 {[%emt 0:00:58]} 5. c4 {[%emt 0:01:36]} Nf6 {[%emt 0:01:07]} 6. g3 {[%emt 0:00:07]} Be7 {[%emt 0:06:08]} 7. Bg2 {[%emt 0:00:08]} O-O {[%emt 0:00:26]} 8. O-O {[%emt 0:00:04]} Nbd7 {[%emt 0:00:43]} 9. Nbd2 {[%emt 0:01:39]} a5 {[%emt 0:02:42]} 10. a3 {[%emt 0:00:09]} c6 {[%emt 0:01:24]} 11. Qc2 {[%emt 0:11:52]} Bh7 {[%emt 0:00:31]} 12. Ne5 {[%emt 0:13:26]} Nxe5 {[%emt 0:00:58]} 13. Bxe5 {[%emt 0:00:04]} Nd7 {[%emt 0:00:48]} 14. Bc3 {[%emt 0:04:29]} Bf6 {[%emt 0:04:12]} 15. Bxf6 {[%emt 0:04:52]} Qxf6 {[%emt 0:03:54]} 16. Rab1 {[%emt 0:00:11]} Rfc8 {[%emt 0:03:17]} 17. Qb2 {[%emt 0:03:37]} b5 {[%emt 0:01:58]} 18. Qxf6 {[%emt 0:10:16]} Nxf6 {[%emt 0:00:49]} 19. Rbc1 {[%emt 0:08:39]} bxc4 {[%emt 0:05:50]} 20. bxc4 {[%emt 0:03:36]} Rab8 {[%emt 0:00:49]} 21. Rb1 {[%emt 0:01:37]} Nd7 {[%emt 0:04:51]} 22. f4 {[%emt 0:10:14]} Kf8 {[%emt 0:04:39]} 1/2-1/2